[Event "CCT Chessable Masters D-III 2024"]
[Site "Online"]
[Date "2024.02.03"]
[Round "53"]
[White "Antipov, Mikhail Al."]
[Black "Yoo, Christopher Woojin"]
[Result "1-0"]
[ECO "B52"]
[WhiteElo "2604"]
[BlackElo "2595"]
[Annotator "ChessBase"]
[PlyCount "55"]
[EventDate "2024.01.12"]
[EventType "k.o."]
[EventCountry "NET"]
[SourceTitle "playchess.com"]
[Source "ChessBase"]
[SourceQuality "1"]
[TimeControl "600+2"]

1. e4 {[%emt 0:00:03]} c5 {[%emt 0:00:08]} 2. Nf3 {[%emt 0:00:02]} d6 {[%emt 0:00:10]} 3. Bb5+ {[%emt 0:00:02]} Bd7 {[%emt 0:00:01]} 4. c4 {[%emt 0:00:01]} Nf6 {[%emt 0:00:23]} 5. Nc3 {[%emt 0:00:01]} g6 {[%emt 0:00:12]} 6. O-O {[%emt 0:00:03]} Bg7 {[%emt 0:00:04]} 7. Bxd7+ {[%emt 0:00:01]} Qxd7 {[%emt 0:00:24]} 8. d4 {[%emt 0:00:02]} cxd4 {[%emt 0:00:03]} 9. Qxd4 {[%emt 0:00:00]} Nc6 {[%emt 0:00:04]} 10. Qd3 {[%emt 0:00:04]} O-O {[%emt 0:00:26]} 11. Bd2 {[%emt 0:00:02]} Rfc8 {[%emt 0:01:09]} 12. h3 {[%emt 0:00:21]} Qd8 {[%emt 0:00:39]} 13. Rac1 {[%emt 0:01:55]} Nd7 {[%emt 0:00:40]} 14. b3 {[%emt 0:00:17]} a5 {[%emt 0:00:28]} 15. Rfd1 {[%emt 0:00:39]} Nc5 {[%emt 0:01:41]} 16. Qb1 {[%emt 0:00:03]} a4 {[%emt 0:00:02]} 17. b4 {[%emt 0:00:08]} Nd7 {[%emt 0:00:02]} 18. Bf4 {[%emt 0:00:34]} a3 {[%emt 0:00:39]} 19. Qb3 {[%emt 0:00:02]} Qe8 {[%emt 0:00:17]} 20. Nb5 {[%emt 0:00:08]} Bb2 {[%emt 0:00:09]} 21. Rc2 {[%emt 0:00:01]} Nde5 {[%emt 0:00:43]} 22. Nxe5 {[%emt 0:02:36]} Nxe5 {[%emt 0:00:03]} 23. Bxe5 {[%emt 0:00:01]} dxe5 {[%emt 0:00:00]} 24. Rcd2 {[%emt 0:00:51]} Qc6 {[%emt 0:00:19]} 25. Rd5 {[%emt 0:01:08]} b6 {[%emt 0:00:21]} 26. Rd7 {[%emt 0:00:41]} Bd4 {[%emt 0:00:33]} 27. Rxe7 {[%emt 0:00:03]} Qxc4 {[%emt 0:00:01]} 28. Re8+ {[%emt 0:00:04]} 1-0

[Event "CCT Chessable Masters D-III 2024"]
[Site "Online"]
[Date "2024.02.03"]
[Round "53"]
[White "Yoo, Christopher Woojin"]
[Black "Antipov, Mikhail Al."]
[Result "0-1"]
[ECO "C54"]
[WhiteElo "2595"]
[BlackElo "2604"]
[Annotator "ChessBase"]
[PlyCount "56"]
[EventDate "2024.01.12"]
[EventType "k.o."]
[EventCountry "NET"]
[SourceTitle "playchess.com"]
[Source "ChessBase"]
[SourceQuality "1"]
[TimeControl "600+2"]

1. e4 {[%emt 0:00:03]} e5 {[%emt 0:00:05]} 2. Nf3 {[%emt 0:00:02]} Nc6 {[%emt 0:00:01]} 3. Bc4 {[%emt 0:00:01]} Bc5 {[%emt 0:00:02]} 4. c3 {[%emt 0:00:04]} Nf6 {[%emt 0:00:01]} 5. d4 {[%emt 0:00:12]} exd4 {[%emt 0:00:01]} 6. e5 {[%emt 0:00:02]} d5 {[%emt 0:00:01]} 7. Be2 {[%emt 0:00:06]} Ne4 {[%emt 0:00:16]} 8. cxd4 {[%emt 0:00:02]} Bb6 {[%emt 0:01:09]} 9. Nc3 {[%emt 0:00:08]} O-O {[%emt 0:00:20]} 10. O-O {[%emt 0:00:02]} Bf5 {[%emt 0:00:39]} 11. Be3 {[%emt 0:00:08]} h6 {[%emt 0:00:16]} 12. Rc1 {[%emt 0:00:20]} Ne7 {[%emt 0:00:29]} 13. Nh4 {[%emt 0:00:27]} Bh7 {[%emt 0:00:07]} 14. Bd3 {[%emt 0:01:13]} f5 {[%emt 0:00:03]} 15. exf6 {[%emt 0:00:58]} Rxf6 {[%emt 0:00:03]} 16. Qc2 {[%emt 0:00:57]} Re6 {[%emt 0:02:36]} 17. Nf3 {[%emt 0:00:45]} c6 {[%emt 0:00:12]} 18. Ne5 {[%emt 0:00:08]} Qd6 {[%emt 0:00:56]} 19. Nxe4 {[%emt 0:01:34]} dxe4 {[%emt 0:00:03]} 20. Bxe4 {[%emt 0:00:01]} Bxe4 {[%emt 0:00:01]} 21. Qxe4 {[%emt 0:00:00]} Rf8 {[%emt 0:00:46]} 22. Nc4 {[%emt 0:00:41]} Qxh2+ {[%emt 0:00:05]} 23. Kxh2 {[%emt 0:00:01]} Rxe4 {[%emt 0:00:00]} 24. Nd6 {[%emt 0:00:01]} Rh4+ {[%emt 0:00:08]} 25. Kg3 {[%emt 0:00:03]} g5 {[%emt 0:00:12]} 26. Rh1 {[%emt 0:00:02]} Bc7 {[%emt 0:00:02]} 27. Rxh4 {[%emt 0:00:12]} Bxd6+ {[%emt 0:00:01]} 28. Kh3 {[%emt 0:00:01]} gxh4 {[%emt 0:00:01]} 0-1

[Event "CCT Chessable Masters D-III 2024"]
[Site "Online"]
[Date "2024.02.03"]
[Round "53"]
[White "Lysyj, Igor"]
[Black "Bortnyk, Oleksandr"]
[Result "1/2-1/2"]
[ECO "A50"]
[WhiteElo "2589"]
[BlackElo "2641"]
[Annotator "ChessBase"]
[PlyCount "165"]
[EventDate "2024.01.12"]
[EventType "k.o."]
[EventCountry "NET"]
[SourceTitle "playchess.com"]
[Source "ChessBase"]
[SourceQuality "1"]
[TimeControl "600+2"]

1. d4 {[%emt 0:00:04]} Nf6 {[%emt 0:00:23]} 2. c4 {[%emt 0:00:04]} b6 {[%emt 0:00:05]} 3. Nc3 {[%emt 0:00:12]} Bb7 {[%emt 0:00:04]} 4. Nf3 {[%emt 0:00:03]} g6 {[%emt 0:00:02]} 5. d5 {[%emt 0:00:04]} Bg7 {[%emt 0:00:01]} 6. e4 {[%emt 0:00:02]} O-O {[%emt 0:00:01]} 7. Be2 {[%emt 0:00:06]} Na6 {[%emt 0:00:21]} 8. O-O {[%emt 0:00:04]} Nc5 {[%emt 0:00:07]} 9. e5 {[%emt 0:00:06]} Ng4 {[%emt 0:00:09]} 10. Ne1 {[%emt 0:00:29]} Nh6 {[%emt 0:00:35]} 11. Bf4 {[%emt 0:01:20]} d6 {[%emt 0:00:28]} 12. Qd2 {[%emt 0:00:03]} Nf5 {[%emt 0:00:04]} 13. Nf3 {[%emt 0:00:01]} dxe5 {[%emt 0:01:16]} 14. Bxe5 {[%emt 0:00:03]} f6 {[%emt 0:00:30]} 15. Bg3 {[%emt 0:00:09]} e5 {[%emt 0:00:05]} 16. b4 {[%emt 0:00:19]} Nd7 {[%emt 0:00:14]} 17. Rad1 {[%emt 0:00:20]} a5 {[%emt 0:00:05]} 18. a3 {[%emt 0:00:07]} axb4 {[%emt 0:00:17]} 19. axb4 {[%emt 0:00:02]} Bh6 {[%emt 0:01:09]} 20. Qc2 {[%emt 0:00:12]} Nxg3 {[%emt 0:00:06]} 21. hxg3 {[%emt 0:00:05]} f5 {[%emt 0:00:01]} 22. c5 {[%emt 0:01:06]} bxc5 {[%emt 0:00:48]} 23. bxc5 {[%emt 0:00:03]} Nxc5 {[%emt 0:00:25]} 24. Nxe5 {[%emt 0:00:08]} Bg7 {[%emt 0:00:26]} 25. Nc6 {[%emt 0:00:32]} Qf6 {[%emt 0:00:59]} 26. Nb5 {[%emt 0:00:17]} Ne4 {[%emt 0:00:13]} 27. Nxc7 {[%emt 0:00:49]} Rac8 {[%emt 0:00:06]} 28. Ne6 {[%emt 0:00:02]} Rf7 {[%emt 0:00:17]} 29. Nxg7 {[%emt 0:00:31]} Bxc6 {[%emt 0:00:22]} 30. Nxf5 {[%emt 0:00:26]} gxf5 {[%emt 0:00:43]} 31. dxc6 {[%emt 0:00:03]} Rxc6 {[%emt 0:00:02]} 32. Qb3 {[%emt 0:01:55]} Kg7 {[%emt 0:00:10]} 33. Bh5 {[%emt 0:00:07]} Rfc7 {[%emt 0:00:09]} 34. Bf3 {[%emt 0:00:10]} Rc3 {[%emt 0:00:02]} 35. Qb5 {[%emt 0:00:03]} R3c5 {[%emt 0:00:04]} 36. Qb4 {[%emt 0:00:12]} Rc4 {[%emt 0:00:06]} 37. Qa5 {[%emt 0:00:13]} R4c5 {[%emt 0:00:01]} 38. Qa8 {[%emt 0:00:05]} Ng5 {[%emt 0:00:09]} 39. Rd8 {[%emt 0:00:05]} Rc1 {[%emt 0:00:00]} 40. Rd7+ {[%emt 0:00:17]} Rxd7 {[%emt 0:00:10]} 41. Rxc1 {[%emt 0:00:02]} Re7 {[%emt 0:00:02]} 42. Rd1 {[%emt 0:00:04]} Ne4 {[%emt 0:00:05]} 43. Re1 {[%emt 0:00:06]} Ng5 {[%emt 0:00:02]} 44. Rxe7+ {[%emt 0:00:05]} Qxe7 {[%emt 0:00:00]} 45. Qa1+ {[%emt 0:00:01]} Qf6 {[%emt 0:00:01]} 46. Qd1 {[%emt 0:00:01]} Nf7 {[%emt 0:00:06]} 47. Be2 {[%emt 0:00:02]} Nd6 {[%emt 0:00:00]} 48. Bd3 {[%emt 0:00:02]} Qd4 {[%emt 0:00:02]} 49. Qf3 {[%emt 0:00:02]} Qa1+ {[%emt 0:00:01]} 50. Kh2 {[%emt 0:00:01]} Qf6 {[%emt 0:00:00]} 51. Qf4 {[%emt 0:00:01]} Qh6+ {[%emt 0:00:03]} 52. Kg1 {[%emt 0:00:06]} Qxf4 {[%emt 0:00:03]} 53. gxf4 {[%emt 0:00:00]} Kf6 {[%emt 0:00:00]} 54. g3 {[%emt 0:00:01]} h6 {[%emt 0:00:01]} 55. Kg2 {[%emt 0:00:01]} Nb7 {[%emt 0:00:01]} 56. Kh3 {[%emt 0:00:01]} Nc5 {[%emt 0:00:00]} 57. Bc2 {[%emt 0:00:00]} Ne6 {[%emt 0:00:03]} 58. Kh4 {[%emt 0:00:02]} Ng7 {[%emt 0:00:02]} 59. Bd3 {[%emt 0:00:02]} Ke6 {[%emt 0:00:01]} 60. Kh3 {[%emt 0:00:02]} Kf6 {[%emt 0:00:01]} 61. Kg2 {[%emt 0:00:00]} Ne6 {[%emt 0:00:00]} 62. Kf3 {[%emt 0:00:01]} Nd4+ {[%emt 0:00:01]} 63. Ke3 {[%emt 0:00:01]} Ne6 {[%emt 0:00:01]} 64. Bc4 {[%emt 0:00:01]} Nf8 {[%emt 0:00:01]} 65. Kd4 {[%emt 0:00:02]} Ng6 {[%emt 0:00:00]} 66. Be2 {[%emt 0:00:02]} Nf8 {[%emt 0:00:05]} 67. Kd5 {[%emt 0:00:01]} Ne6 {[%emt 0:00:01]} 68. Bd3 {[%emt 0:00:03]} Nf8 {[%emt 0:00:01]} 69. Kd6 {[%emt 0:00:04]} Ng6 {[%emt 0:00:01]} 70. Be2 {[%emt 0:00:03]} Nf8 {[%emt 0:00:01]} 71. Bc4 {[%emt 0:00:07]} Ng6 {[%emt 0:00:01]} 72. Be2 {[%emt 0:00:07]} Nf8 {[%emt 0:00:01]} 73. Bf3 {[%emt 0:00:03]} Ne6 {[%emt 0:00:04]} 74. Kd5 {[%emt 0:00:02]} Nc7+ {[%emt 0:00:02]} 75. Kc4 {[%emt 0:00:02]} Ne6 {[%emt 0:00:00]} 76. Bd5 {[%emt 0:00:01]} Nf8 {[%emt 0:00:01]} 77. Kd4 {[%emt 0:00:01]} Ng6 {[%emt 0:00:01]} 78. Ke3 {[%emt 0:00:02]} h5 {[%emt 0:00:06]} 79. Bf3 {[%emt 0:00:06]} h4 {[%emt 0:00:00]} 80. Bg2 {[%emt 0:00:01]} hxg3 {[%emt 0:00:02]} 81. fxg3 {[%emt 0:00:00]} Nf8 {[%emt 0:00:01]} 82. Bh3 {[%emt 0:00:03]} Ne6 {[%emt 0:00:01]} 83. Bg2 {[%emt 0:00:03]} 1/2-1/2

[Event "CCT Chessable Masters D-III 2024"]
[Site "Online"]
[Date "2024.02.04"]
[Round "54"]
[White "Tabatabaei, M. Amin"]
[Black "Indjic, Aleksandar"]
[Result "1/2-1/2"]
[ECO "D05"]
[WhiteElo "2696"]
[BlackElo "2595"]
[Annotator "ChessBase"]
[PlyCount "118"]
[EventDate "2024.01.12"]
[EventType "k.o."]
[EventCountry "NET"]
[SourceTitle "playchess.com"]
[Source "ChessBase"]
[SourceQuality "1"]
[TimeControl "600+2"]

1. d4 {[%emt 0:00:05]} Nf6 {[%emt 0:03:05]} 2. Nf3 {[%emt 0:00:03]} e6 {[%emt 0:00:02]} 3. e3 {[%emt 0:00:02]} b6 {[%emt 0:00:04]} 4. Bd3 {[%emt 0:00:04]} Bb7 {[%emt 0:00:02]} 5. O-O {[%emt 0:00:03]} d5 {[%emt 0:00:03]} 6. b3 {[%emt 0:00:07]} Be7 {[%emt 0:00:03]} 7. c4 {[%emt 0:00:04]} Nbd7 {[%emt 0:00:03]} 8. cxd5 {[%emt 0:00:05]} exd5 {[%emt 0:00:04]} 9. Ba3 {[%emt 0:00:03]} O-O {[%emt 0:00:03]} 10. Bxe7 {[%emt 0:00:05]} Qxe7 {[%emt 0:00:03]} 11. Nc3 {[%emt 0:00:03]} a6 {[%emt 0:00:03]} 12. Rc1 {[%emt 0:00:05]} c5 {[%emt 0:00:03]} 13. Ne2 {[%emt 0:00:08]} g6 {[%emt 0:00:04]} 14. Qc2 {[%emt 0:00:04]} Rac8 {[%emt 0:00:04]} 15. Qb2 {[%emt 0:00:06]} Rfe8 {[%emt 0:00:03]} 16. Rfd1 {[%emt 0:00:07]} h5 {[%emt 0:00:04]} 17. Nf4 {[%emt 0:00:07]} b5 {[%emt 0:00:10]} 18. dxc5 {[%emt 0:00:08]} Rxc5 {[%emt 0:00:03]} 19. Bf1 {[%emt 0:00:18]} Rec8 {[%emt 0:00:04]} 20. Nd3 {[%emt 0:00:09]} R5c7 {[%emt 0:00:07]} 21. Rxc7 {[%emt 0:00:07]} Rxc7 {[%emt 0:00:02]} 22. Rc1 {[%emt 0:00:03]} Qd6 {[%emt 0:00:03]} 23. Nd4 {[%emt 0:00:11]} Ne4 {[%emt 0:00:05]} 24. Rc2 {[%emt 0:00:49]} Rxc2 {[%emt 0:00:06]} 25. Qxc2 {[%emt 0:00:02]} b4 {[%emt 0:00:03]} 26. g3 {[%emt 0:00:29]} a5 {[%emt 0:00:09]} 27. Bg2 {[%emt 0:00:04]} Nc3 {[%emt 0:00:03]} 28. a3 {[%emt 0:00:16]} Ba6 {[%emt 0:00:07]} 29. axb4 {[%emt 0:00:03]} axb4 {[%emt 0:00:05]} 30. Nf4 {[%emt 0:00:15]} Ne5 {[%emt 0:00:03]} 31. h4 {[%emt 0:00:29]} Kf8 {[%emt 0:00:06]} 32. Qc1 {[%emt 0:00:07]} Nd3 {[%emt 0:00:08]} 33. Nxd3 {[%emt 0:00:06]} Bxd3 {[%emt 0:00:02]} 34. Qa1 {[%emt 0:00:07]} Ba6 {[%emt 0:00:10]} 35. Qa5 {[%emt 0:00:07]} Bd3 {[%emt 0:00:10]} 36. Qa8+ {[%emt 0:00:30]} Kg7 {[%emt 0:00:04]} 37. Qb7 {[%emt 0:00:02]} Ba6 {[%emt 0:00:31]} 38. Qc6 {[%emt 0:00:36]} Qxc6 {[%emt 0:00:03]} 39. Nxc6 {[%emt 0:00:02]} Bc4 {[%emt 0:00:03]} 40. Nxb4 {[%emt 0:00:50]} Bxb3 {[%emt 0:00:03]} 41. Kf1 {[%emt 0:00:02]} Kf6 {[%emt 0:00:04]} 42. Ke1 {[%emt 0:00:03]} Bc4 {[%emt 0:00:04]} 43. Kd2 {[%emt 0:00:08]} Ne4+ {[%emt 0:00:06]} 44. Bxe4 {[%emt 0:00:10]} dxe4 {[%emt 0:00:02]} 45. Kc3 {[%emt 0:00:02]} Bf1 {[%emt 0:00:03]} 46. Kd4 {[%emt 0:00:09]} Kf5 {[%emt 0:00:03]} 47. Nd5 {[%emt 0:00:05]} Bg2 {[%emt 0:00:04]} 48. Nc3 {[%emt 0:00:08]} f6 {[%emt 0:00:04]} 49. Kd5 {[%emt 0:00:15]} g5 {[%emt 0:00:06]} 50. Kd6 {[%emt 0:00:03]} gxh4 {[%emt 0:00:05]} 51. gxh4 {[%emt 0:00:02]} Kg4 {[%emt 0:00:03]} 52. Ke6 {[%emt 0:00:28]} Kxh4 {[%emt 0:00:16]} 53. Kf5 {[%emt 0:00:04]} Kh3 {[%emt 0:00:03]} 54. Nd5 {[%emt 0:00:09]} Bf3 {[%emt 0:00:04]} 55. Nxf6 {[%emt 0:00:14]} Kg2 {[%emt 0:00:09]} 56. Nxh5 {[%emt 0:00:07]} Bxh5 {[%emt 0:00:04]} 57. Kxe4 {[%emt 0:00:02]} Kxf2 {[%emt 0:00:03]} 58. Kf4 {[%emt 0:00:03]} Bf3 {[%emt 0:00:04]} 59. e4 {[%emt 0:00:02]} Bxe4 {[%emt 0:00:03]} 1/2-1/2

[Event "CCT Chessable Masters D-III 2024"]
[Site "Online"]
[Date "2024.02.04"]
[Round "54"]
[White "Tabatabaei, M. Amin"]
[Black "Indjic, Aleksandar"]
[Result "1-0"]
[ECO "E13"]
[WhiteElo "2696"]
[BlackElo "2595"]
[Annotator "ChessBase"]
[PlyCount "141"]
[EventDate "2024.01.12"]
[EventType "k.o."]
[EventCountry "NET"]
[SourceTitle "playchess.com"]
[Source "ChessBase"]
[SourceQuality "1"]
[TimeControl "600+2"]

1. d4 {[%emt 0:00:02]} Nf6 {[%emt 0:00:03]} 2. c4 {[%emt 0:00:01]} e6 {[%emt 0:00:00]} 3. Nf3 {[%emt 0:00:00]} c5 {[%emt 0:00:01]} 4. e3 {[%emt 0:00:02]} cxd4 {[%emt 0:00:08]} 5. exd4 {[%emt 0:00:01]} Bb4+ {[%emt 0:00:01]} 6. Nc3 {[%emt 0:00:02]} b6 {[%emt 0:00:04]} 7. Bd3 {[%emt 0:00:08]} Bb7 {[%emt 0:00:01]} 8. O-O {[%emt 0:00:01]} O-O {[%emt 0:00:01]} 9. Bg5 {[%emt 0:00:29]} h6 {[%emt 0:00:02]} 10. Bh4 {[%emt 0:00:01]} Bxc3 {[%emt 0:00:31]} 11. bxc3 {[%emt 0:00:02]} d6 {[%emt 0:00:00]} 12. Qe2 {[%emt 0:00:08]} Nbd7 {[%emt 0:00:02]} 13. Nd2 {[%emt 0:00:45]} Rc8 {[%emt 0:00:03]} 14. a4 {[%emt 0:00:05]} Re8 {[%emt 0:00:06]} 15. f4 {[%emt 0:02:11]} d5 {[%emt 0:00:04]} 16. a5 {[%emt 0:00:20]} Qc7 {[%emt 0:00:04]} 17. Bg3 {[%emt 0:00:21]} dxc4 {[%emt 0:02:11]} 18. Nxc4 {[%emt 0:01:31]} b5 {[%emt 0:00:03]} 19. f5 {[%emt 0:00:18]} bxc4 {[%emt 0:00:10]} 20. Bxc7 {[%emt 0:00:03]} cxd3 {[%emt 0:00:01]} 21. Qxd3 {[%emt 0:00:13]} Rxc7 {[%emt 0:00:01]} 22. fxe6 {[%emt 0:00:39]} Rxe6 {[%emt 0:00:04]} 23. c4 {[%emt 0:00:21]} Ba6 {[%emt 0:00:06]} 24. Rfc1 {[%emt 0:00:04]} Rec6 {[%emt 0:00:10]} 25. Ra4 {[%emt 0:00:04]} Rc8 {[%emt 0:00:17]} 26. Qb3 {[%emt 0:00:16]} Rd6 {[%emt 0:00:06]} 27. Qb2 {[%emt 0:00:11]} Rdc6 {[%emt 0:00:20]} 28. c5 {[%emt 0:00:10]} Nd5 {[%emt 0:00:03]} 29. Re1 {[%emt 0:00:25]} N7f6 {[%emt 0:00:53]} 30. Ra3 {[%emt 0:00:05]} R6c7 {[%emt 0:00:12]} 31. Rb3 {[%emt 0:00:02]} Nf4 {[%emt 0:00:10]} 32. Qd2 {[%emt 0:00:58]} Ne6 {[%emt 0:00:04]} 33. Reb1 {[%emt 0:00:13]} Rd7 {[%emt 0:00:08]} 34. Rb8 {[%emt 0:00:01]} Rxd4 {[%emt 0:00:28]} 35. Rxc8+ {[%emt 0:00:01]} Bxc8 {[%emt 0:00:01]} 36. Qc2 {[%emt 0:00:00]} Rd7 {[%emt 0:00:59]} 37. c6 {[%emt 0:00:03]} Rc7 {[%emt 0:00:03]} 38. Rb8 {[%emt 0:00:01]} a6 {[%emt 0:00:48]} 39. Qc4 {[%emt 0:00:15]} Ne8 {[%emt 0:00:02]} 40. Qd5 {[%emt 0:00:06]} g5 {[%emt 0:00:09]} 41. h3 {[%emt 0:00:11]} Kf8 {[%emt 0:00:11]} 42. Kh2 {[%emt 0:00:03]} Ke7 {[%emt 0:00:10]} 43. Rxc8 {[%emt 0:00:05]} Rxc8 {[%emt 0:00:04]} 44. Qd7+ {[%emt 0:00:01]} Kf6 {[%emt 0:00:02]} 45. Qxc8 {[%emt 0:00:00]} N8c7 {[%emt 0:00:01]} 46. Qd7 {[%emt 0:00:02]} Kg6 {[%emt 0:00:07]} 47. Qd6 {[%emt 0:00:02]} f5 {[%emt 0:00:01]} 48. Kg1 {[%emt 0:00:02]} h5 {[%emt 0:00:02]} 49. Kf2 {[%emt 0:00:02]} h4 {[%emt 0:00:04]} 50. Qe7 {[%emt 0:00:03]} f4 {[%emt 0:00:06]} 51. Kf3 {[%emt 0:00:03]} Kf5 {[%emt 0:00:01]} 52. Qd6 {[%emt 0:00:04]} Nb5 {[%emt 0:00:01]} 53. Qd5+ {[%emt 0:00:02]} Kf6 {[%emt 0:00:01]} 54. Kg4 {[%emt 0:00:03]} Nbc7 {[%emt 0:00:01]} 55. Qf5+ {[%emt 0:00:01]} Ke7 {[%emt 0:00:01]} 56. Qe5 {[%emt 0:00:01]} Kf7 {[%emt 0:00:02]} 57. Kf5 {[%emt 0:00:03]} Ke7 {[%emt 0:00:04]} 58. Kg6 {[%emt 0:00:10]} Nb5 {[%emt 0:00:01]} 59. Qd5 {[%emt 0:00:02]} Nd6 {[%emt 0:00:14]} 60. c7 {[%emt 0:00:03]} Nxc7 {[%emt 0:00:03]} 61. Qxg5+ {[%emt 0:00:01]} Kd7 {[%emt 0:00:01]} 62. Qxf4 {[%emt 0:00:03]} Nd5 {[%emt 0:00:00]} 63. Qg4+ {[%emt 0:00:03]} Ke8 {[%emt 0:00:05]} 64. Qe6+ {[%emt 0:00:03]} Ne7+ {[%emt 0:00:01]} 65. Kh5 {[%emt 0:00:02]} Ndf5 {[%emt 0:00:03]} 66. Qxa6 {[%emt 0:00:02]} Kf7 {[%emt 0:00:01]} 67. Qc4+ {[%emt 0:00:02]} Kf6 {[%emt 0:00:02]} 68. Qc3+ {[%emt 0:00:04]} Ke6 {[%emt 0:00:01]} 69. a6 {[%emt 0:00:01]} Nd5 {[%emt 0:00:00]} 70. Qe1+ {[%emt 0:00:01]} Kf6 {[%emt 0:00:02]} 71. a7 {[%emt 0:00:06]} 1-0

[Event "CCT Chessable Masters D-III 2024"]
[Site "Online"]
[Date "2024.02.04"]
[Round "54"]
[White "Matlakov, Maxim"]
[Black "bardiya_Daneshvar"]
[Result "0-1"]
[ECO "E05"]
[WhiteElo "2662"]
[BlackElo "2618"]
[Annotator "ChessBase"]
[PlyCount "72"]
[EventDate "2024.01.12"]
[EventType "k.o."]
[EventCountry "NET"]
[SourceTitle "playchess.com"]
[Source "ChessBase"]
[SourceQuality "1"]
[TimeControl "600+2"]

1. d4 {[%emt 0:00:02]} Nf6 {[%emt 0:00:03]} 2. c4 {[%emt 0:00:02]} e6 {[%emt 0:00:02]} 3. Nf3 {[%emt 0:00:01]} d5 {[%emt 0:00:00]} 4. g3 {[%emt 0:00:01]} Be7 {[%emt 0:00:01]} 5. Bg2 {[%emt 0:00:02]} O-O {[%emt 0:00:01]} 6. O-O {[%emt 0:00:01]} dxc4 {[%emt 0:00:01]} 7. Qc2 {[%emt 0:00:06]} a6 {[%emt 0:00:00]} 8. a4 {[%emt 0:00:03]} Bd7 {[%emt 0:00:01]} 9. Bg5 {[%emt 0:00:02]} Bc6 {[%emt 0:00:05]} 10. Rd1 {[%emt 0:00:02]} b5 {[%emt 0:00:07]} 11. Bxf6 {[%emt 0:00:02]} Bxf6 {[%emt 0:00:01]} 12. Nc3 {[%emt 0:00:00]} Nd7 {[%emt 0:00:04]} 13. Ng5 {[%emt 0:00:42]} Bxg5 {[%emt 0:00:14]} 14. Bxc6 {[%emt 0:00:01]} Rb8 {[%emt 0:00:01]} 15. axb5 {[%emt 0:00:08]} axb5 {[%emt 0:00:04]} 16. Nxb5 {[%emt 0:00:37]} Nb6 {[%emt 0:00:28]} 17. Ra7 {[%emt 0:00:32]} Rc8 {[%emt 0:00:42]} 18. Bb7 {[%emt 0:00:21]} Rb8 {[%emt 0:00:02]} 19. Be4 {[%emt 0:00:03]} g6 {[%emt 0:00:44]} 20. Nxc7 {[%emt 0:00:59]} Nc8 {[%emt 0:00:14]} 21. Ra5 {[%emt 0:00:36]} Qxc7 {[%emt 0:01:02]} 22. Rxg5 {[%emt 0:00:05]} f5 {[%emt 0:00:01]} 23. Bf3 {[%emt 0:01:18]} Ne7 {[%emt 0:01:11]} 24. d5 {[%emt 0:00:04]} Rbd8 {[%emt 0:00:14]} 25. g4 {[%emt 0:01:40]} h6 {[%emt 0:00:47]} 26. gxf5 {[%emt 0:00:18]} hxg5 {[%emt 0:00:04]} 27. fxe6 {[%emt 0:00:01]} Qf4 {[%emt 0:00:46]} 28. Qc3 {[%emt 0:00:18]} Nxd5 {[%emt 0:01:15]} 29. Qa5 {[%emt 0:00:31]} Nc7 {[%emt 0:00:09]} 30. Rf1 {[%emt 0:00:48]} Nxe6 {[%emt 0:00:11]} 31. Qb6 {[%emt 0:00:05]} Rd6 {[%emt 0:00:05]} 32. Qb7 {[%emt 0:00:03]} Rf7 {[%emt 0:00:04]} 33. Qa8+ {[%emt 0:00:02]} Kg7 {[%emt 0:00:02]} 34. Bg2 {[%emt 0:00:03]} Rd8 {[%emt 0:00:02]} 35. Qc6 {[%emt 0:00:03]} Rh8 {[%emt 0:00:02]} 36. h3 {[%emt 0:00:05]} Nd4 {[%emt 0:00:02]} 0-1

[Event "CCT Chessable Masters D-III 2024"]
[Site "Online"]
[Date "2024.02.04"]
[Round "54"]
[White "Bortnyk, Oleksandr"]
[Black "Santos Latasa, Jaime"]
[Result "1-0"]
[ECO "C77"]
[WhiteElo "2647"]
[BlackElo "2615"]
[Annotator "ChessBase"]
[PlyCount "117"]
[EventDate "2024.01.12"]
[EventType "k.o."]
[EventCountry "NET"]
[SourceTitle "playchess.com"]
[Source "ChessBase"]
[SourceQuality "1"]
[TimeControl "600+2"]

1. e4 {[%emt 0:00:09]} e5 {[%emt 0:00:04]} 2. Nf3 {[%emt 0:00:06]} Nc6 {[%emt 0:00:02]} 3. Bb5 {[%emt 0:00:02]} a6 {[%emt 0:00:01]} 4. Ba4 {[%emt 0:00:01]} Nf6 {[%emt 0:00:01]} 5. Nc3 {[%emt 0:00:01]} Bc5 {[%emt 0:00:02]} 6. O-O {[%emt 0:00:05]} d6 {[%emt 0:00:08]} 7. d4 {[%emt 0:00:12]} exd4 {[%emt 0:00:06]} 8. Bxc6+ {[%emt 0:00:01]} bxc6 {[%emt 0:00:02]} 9. Nxd4 {[%emt 0:00:00]} O-O {[%emt 0:00:07]} 10. Bg5 {[%emt 0:00:09]} Bd7 {[%emt 0:00:11]} 11. Nb3 {[%emt 0:00:08]} Bb6 {[%emt 0:00:10]} 12. e5 {[%emt 0:00:41]} dxe5 {[%emt 0:00:15]} 13. Ne4 {[%emt 0:00:55]} Bf5 {[%emt 0:00:10]} 14. Nxf6+ {[%emt 0:00:23]} gxf6 {[%emt 0:00:03]} 15. Qf3 {[%emt 0:00:26]} fxg5 {[%emt 0:00:25]} 16. Qxf5 {[%emt 0:00:03]} Qe7 {[%emt 0:00:01]} 17. Nd2 {[%emt 0:00:51]} Rad8 {[%emt 0:00:51]} 18. Ne4 {[%emt 0:00:02]} f6 {[%emt 0:00:02]} 19. Rad1 {[%emt 0:00:02]} Kg7 {[%emt 0:00:04]} 20. g4 {[%emt 0:01:56]} Rd5 {[%emt 0:00:08]} 21. c4 {[%emt 0:00:06]} Rd4 {[%emt 0:00:06]} 22. Rxd4 {[%emt 0:00:13]} Bxd4 {[%emt 0:00:03]} 23. Rd1 {[%emt 0:00:02]} Re8 {[%emt 0:00:13]} 24. Ng3 {[%emt 0:00:04]} Qe6 {[%emt 0:00:18]} 25. Nh5+ {[%emt 0:00:47]} Kh8 {[%emt 0:00:03]} 26. Qe4 {[%emt 0:00:43]} c5 {[%emt 0:00:27]} 27. Rd3 {[%emt 0:00:11]} f5 {[%emt 0:00:35]} 28. gxf5 {[%emt 0:00:38]} Qxc4 {[%emt 0:00:01]} 29. Kg2 {[%emt 0:00:03]} Qf7 {[%emt 0:00:44]} 30. Rh3 {[%emt 0:00:02]} Rd8 {[%emt 0:00:15]} 31. b3 {[%emt 0:00:37]} h6 {[%emt 0:00:55]} 32. f6 {[%emt 0:00:32]} Qh7 {[%emt 0:00:21]} 33. Ng3 {[%emt 0:00:15]} Rf8 {[%emt 0:00:15]} 34. Qc6 {[%emt 0:00:21]} Qg6 {[%emt 0:00:25]} 35. Ne4 {[%emt 0:00:16]} g4 {[%emt 0:00:01]} 36. Rh4 {[%emt 0:00:03]} Kg8 {[%emt 0:00:32]} 37. Qe6+ {[%emt 0:00:03]} Kh7 {[%emt 0:00:06]} 38. Rxg4 {[%emt 0:00:01]} Qxg4+ {[%emt 0:00:05]} 39. Qxg4 {[%emt 0:00:01]} Rg8 {[%emt 0:00:01]} 40. f3 {[%emt 0:00:05]} Rxg4+ {[%emt 0:00:05]} 41. fxg4 {[%emt 0:00:00]} Kg6 {[%emt 0:00:01]} 42. h4 {[%emt 0:00:01]} Be3 {[%emt 0:00:07]} 43. Kf3 {[%emt 0:00:01]} Bd4 {[%emt 0:00:02]} 44. a4 {[%emt 0:00:03]} c4 {[%emt 0:00:03]} 45. bxc4 {[%emt 0:00:01]} a5 {[%emt 0:00:02]} 46. g5 {[%emt 0:00:06]} hxg5 {[%emt 0:00:05]} 47. hxg5 {[%emt 0:00:00]} Bb2 {[%emt 0:00:01]} 48. Kg4 {[%emt 0:00:01]} Bc1 {[%emt 0:00:01]} 49. Kh4 {[%emt 0:00:04]} Be3 {[%emt 0:00:01]} 50. Kg4 {[%emt 0:00:00]} Bc1 {[%emt 0:00:01]} 51. c5 {[%emt 0:00:04]} Be3 {[%emt 0:00:02]} 52. c6 {[%emt 0:00:01]} Bc1 {[%emt 0:00:01]} 53. Kh4 {[%emt 0:00:06]} Be3 {[%emt 0:00:11]} 54. Kg3 {[%emt 0:00:01]} Bc1 {[%emt 0:00:03]} 55. Kf3 {[%emt 0:00:01]} Ba3 {[%emt 0:00:06]} 56. Ke2 {[%emt 0:00:02]} Kf5 {[%emt 0:00:01]} 57. Ke3 {[%emt 0:00:01]} Bc1+ {[%emt 0:00:03]} 58. Kd3 {[%emt 0:00:00]} Ba3 {[%emt 0:00:01]} 59. Kc4 {[%emt 0:00:02]} 1-0